[Event "101st Irish Championship 2022"]
[Site "Dublin"]
[Date "2022.07.05"]
[Round "1.11"]
[White "Venkatesan, Kavin"]
[Black "Keenan, Cathal"]
[Result "1-0"]
[ECO "A18"]
[WhiteElo "2076"]
[BlackElo "1811"]
[Annotator "TA"]
[PlyCount "97"]
[EventDate "2022.07.05"]
[EventType "swiss"]
[EventCountry "IRL"]
[SourceTitle "playchess.com"]
[Source "ChessBase"]
[SourceQuality "1"]
[TimeControl "40/6300+30:1800+30"]

{[%evp 17,97,57,132,57,133,78,240,256,233,68,93,75,83,62,64,46,81,0,27,29,29,30,20,-11,-18,-20,-21,-21,-23,-17,352,350,354,371,364,367,437,445,538,535,529,473,464,456,529,518,587,582,580,577,569,552,522,516,908,908,954,893,877,716,1214,1138,1023,845,29964,29964,29969,29969,29958,6087,29971,29965,29963,12792,6211,1550,7801,1923,6421,5089,29977,29978]} 1. c4 {[%emt 0:00:03]} Nf6 {[%emt 0:01:07]} 2. Nc3 {[%emt 0:00:13]} e6 {[%emt 0:09:28]} 3. e4 {[%emt 0:02:07]} d5 {[%emt 0:00:48]} 4. e5 {[%emt 0:04:57]} d4 {[%emt 0:02:06]} 5. exf6 {[%emt 0:02:54]} dxc3 {[%emt 0:00:32]} 6. bxc3 {[%emt 0:04:47]} Qxf6 {[%emt 0:00:44]} 7. d4 {[%emt 0:01:10]} Nc6 {[%emt 0:06:02]} 8. Nf3 {[%emt 0:03:41]} h6 {[%emt 0:01:10]} 9. Bd3 {[%emt 0:03:17]} Bd6 {[%emt 0:18:26] [#]} (9... e5 $14) 10. Qe2 {[%emt 0:07:17] [#] A18: English Opening: Flohr-Mikenas System (1 c4 Nf6 2 Nc3 e6 3 e4).} (10. O-O $1 $16) 10... g5 $146 {[%emt 0:09:01]} (10... Bd7 $14) ({Predecessor:} 10... O-O 11. h4 Qd8 12. c5 Be7 13. Bf4 e5 14. Nxe5 Nxe5 15. Bxe5 f5 16. Kf1 Bf6 17. Re1 Bd7 18. Bxf6 Qxf6 {1-0 (40) Contin,D (2307)-Iudicello,M (2160) Torino 2010}) 11. Bb2 {[%emt 0:12:52]} (11. Rb1 $142) 11... b6 $2 {[%emt 0:19:03]} (11... O-O $16) 12. c5 $18 {[%emt 0:24:40] White is clearly better.} bxc5 {[%emt 0:02:58]} 13. Bb5 $2 {[%emt 0:01:27]} (13. Be4 $18 Bd7 14. Qa6) 13... Bd7 $14 {[%emt 0:01:24][%cal Oa7a6] [#]} 14. dxc5 $1 {[%emt 0:07:35]} Bxc5 {[%emt 0:11:47][%cal Oa7a6]} 15. O-O {[%emt 0:06:28] Threatens to win with c4.} O-O {[%emt 0:12:14]} 16. Rad1 {[%emt 0:02:20][%mdl 1024] White has compensation.} Be8 {[%emt 0:01:13]} 17. Qe4 {[%emt 0:02:35]} ({Better is} 17. c4 $16 Qf4 18. Rfe1) 17... e5 {[%emt 0:09:25]} (17... Rb8 $5 {[%cal Rb8b5]} 18. Bxc6 Rxb2 19. Bxe8 Rxe8 $11) 18. c4 {[%emt 0:02:31][%cal Rf3e5]} a6 {[%emt 0:00:37]} 19. Ba4 $40 {[%emt 0:02:50][%cal Rf3e5][%mdl 128] Black needs to defend precisely.} Rb8 {[%emt 0:00:11]} 20. Bc2 {[%emt 0:05:46][%csl Gc2][%cal Re4h7]} Qg6 {[%emt 0:00:22] Against Qh7+} 21. Bxe5 {[%emt 0:01:41]} (21. Qxg6+ {is more complex.} fxg6 22. Ba1 Nd4 23. Be4) 21... Qxe4 {[%emt 0:00:14]} 22. Bxe4 {[%emt 0:00:04]} Nxe5 {[%emt 0:00:22]} 23. Nxe5 {[%emt 0:00:04]} Rb2 $2 {[%emt 0:00:17][%mdl 8192] Black is now going downhill.} (23... Kg7 $11) 24. Nd3 $1 $18 {[%emt 0:00:44][%csl LRb2,LRc5]} Bd4 {[%emt 0:01:09]} 25. Nxb2 {[%emt 0:00:07]} Bxb2 {[%emt 0:00:07]} 26. Rd8 {[%emt 0:01:03]} a5 {[%emt 0:00:39]} 27. Rb1 {[%emt 0:02:24]} Ba3 {[%emt 0:00:45]} 28. Rbb8 {[%emt 0:01:20]} Bd7 {[%emt 0:00:26]} 29. Rxf8+ {[%emt 0:01:41]} Bxf8 {[%emt 0:00:11][%mdl 4096] Endgame KRB-KB} 30. Rd8 {[%emt 0:00:54]} Be6 {[%emt 0:00:25]} 31. Bd5 {[%emt 0:00:06]} Bxd5 {[%emt 0:00:42]} 32. cxd5 {[%emt 0:01:26] KR-KB} Kg7 {[%emt 0:00:30]} 33. Ra8 {[%emt 0:00:24]} Bb4 {[%emt 0:00:23]} 34. Ra7 {[%emt 0:00:06]} Kf6 {[%emt 0:00:05]} 35. Rxc7 {[%emt 0:00:09]} Ke5 {[%emt 0:00:08]} (35... Be7 $142 36. Kf1 a4) 36. Rxf7 {[%emt 0:00:46]} Kxd5 {[%emt 0:00:07]} 37. Kf1 {[%emt 0:00:35]} Kc4 {[%emt 0:00:26]} 38. Rc7+ {[%emt 0:02:52]} Kb5 {[%emt 0:01:04]} 39. g4 {[%emt 0:00:24]} Bd6 {[%emt 0:00:22]} 40. Rh7 {[%emt 0:00:03]} Bxh2 {[%emt 0:00:17]} 41. Rxh6 {[%emt 0:30:12]} Bf4 {[%emt 0:30:28]} 42. Ke2 {[%emt 0:00:24]} Kb4 {[%emt 0:00:58]} 43. Rh3 {[%emt 0:00:04]} (43. Rf6 $142 Bc1 44. Rf5 Bb2 45. Rxg5 a4 46. f4 Kc4 47. Ra5 Kb4 48. Ra7) 43... a4 {[%emt 0:01:21]} 44. Rd3 {[%emt 0:00:22]} Kc4 {[%emt 0:00:27]} 45. Rf3 {[%emt 0:01:30][%cal Of3f4] Intending Rxf4+! and mate.} Bd6 {[%emt 0:01:09]} 46. Kd2 {[%emt 0:02:23]} (46. Rf5 $142 Be7 47. f4 gxf4 48. g5) 46... Be7 {[%emt 0:01:53]} 47. Kc2 {[%emt 0:01:14]} (47. Rf5 $142 Kd4 48. f4 gxf4 49. g5) 47... Kd4 {[%emt 0:00:35]} 48. Rf7 {[%emt 0:00:20]} Bc5 {[%emt 0:00:46]} 49. Rg7 {[%emt 0:01:10] Weighted Error Value: White=0.24 (precise) /Black=0.77} 1-0

[Event "101st Irish Championship 2022"]
[Site "Dublin"]
[Date "2022.07.05"]
[Round "1.12"]
[White "Liu, Jason"]
[Black "O'Connell, Gerard"]
[Result "0-1"]
[ECO "B76"]
[WhiteElo "1746"]
[BlackElo "2052"]
[Annotator "TA"]
[PlyCount "38"]
[EventDate "2022.07.05"]
[EventType "swiss"]
[EventCountry "IRL"]
[SourceTitle "playchess.com"]
[Source "ChessBase"]
[SourceQuality "1"]
[TimeControl "40/6300+30:1800+30"]

{[%evp 26,38,43,42,133,-81,-59,-124,-91,-101,-66,-65,-52,-29998,-29999]} 1. e4 {[%emt 0:00:03]} c5 {[%emt 0:00:15]} 2. Nf3 {[%emt 0:00:07]} d6 {[%emt 0:00:09]} 3. d4 {[%emt 0:00:15]} cxd4 {[%emt 0:00:05]} 4. Nxd4 {[%emt 0:00:06]} Nf6 {[%emt 0:00:06]} 5. Nc3 {[%emt 0:00:11]} g6 {[%emt 0:00:10]} 6. Be3 {[%emt 0:00:15]} Bg7 {[%emt 0:00:07]} 7. f3 {[%emt 0:00:06]} Nc6 {[%emt 0:00:08]} 8. Qd2 {[%emt 0:00:18]} O-O {[%emt 0:00:15]} 9. O-O-O {[%emt 0:00:10]} d5 {[%emt 0:00:58]} 10. Nxc6 {[%emt 0:00:31]} bxc6 {[%emt 0:00:10]} 11. exd5 {[%emt 0:00:07]} Nxd5 {[%emt 0:00:37]} 12. Bd4 {[%emt 0:00:15]} e5 {[%emt 0:01:35]} 13. Bc5 {[%emt 0:00:18]} Be6 {[%emt 0:00:40] 13...Re8 is the fancy move.} 14. Ne4 {[%emt 0:00:26]} Qc7 {[%emt 0:05:04] B76: Sicilian Dragon: Yugoslav Attack, 9 g4 and 9 0-0-0.} 15. c4 $2 {[%emt 0:12:52] [#]} (15. Bxf8 $16 {keeps the pressure on.} Bxf8 16. Bc4) 15... Rfd8 $1 $17 {[%emt 0:12:34][%cal Oa8b8] [#]} 16. Qf2 $146 {[%emt 0:08:41]} ({Wrong is} 16. cxd5 $2 cxd5 17. Qc2 dxe4 $19) ({Only move:} 16. h4 $1 $15) ({Predecessor:} 16. Kb1 Nc3+ 17. Nxc3 Rxd2 18. Rxd2 Rd8 19. Rxd8+ Qxd8 20. Be2 Bf5+ 21. Ka1 Bc2 22. Be3 {1-0 (40) Rau,J (2157)-Flachsbart,A (2108) Wuerttemberg 2000}) 16... Qa5 {[%emt 0:24:45]} 17. a3 {[%emt 0:27:25]} Nb6 {[%emt 0:31:25] ...Rxd1+ is the strong threat.} 18. Rxd8+ {[%emt 0:09:09]} Rxd8 {[%emt 0:00:10]} 19. Qc2 {[%emt 0:03:52][%mdl 8192] [#]} (19. b3 $15 Bf8 20. Be2) 19... Qe1+ {[%emt 0:00:56] Weighted Error Value: White=1.28/Black=0.24 (precise)} 0-1

[Event "101st Irish Championship 2022"]
[Site "Dublin"]
[Date "2022.07.05"]
[Round "2.1"]
[White "O`Donnell, Conor"]
[Black "O`Gorman, Tom"]
[Result "1/2-1/2"]
[ECO "E32"]
[WhiteElo "2269"]
[BlackElo "2401"]
[Annotator "TA"]
[PlyCount "145"]
[EventDate "2022.07.05"]
[EventType "swiss"]
[EventCountry "IRL"]
[SourceTitle "playchess.com"]
[Source "ChessBase"]
[SourceQuality "1"]
[TimeControl "40/6300+30:1800+30"]

{[%evp 10,145,2,0,29,21,20,20,27,16,13,20,10,20,21,10,32,20,14,7,25,0,3,0,35,0,0,-19,-18,-21,29,-25,-18,-59,-61,-60,-55,-79,-79,-83,-87,-87,-79,-93,-93,-93,-90,-91,-91,-93,-94,-104,-91,-105,-91,-91,-66,-66,-79,-98,-97,-146,-146,-146,-147,-172,-136,-147,-147,-512,-512,-1017,-1002,-828,-132,-140,-132,-132,-119,-119,-119,-176,-176,-176,-176,-176,-176,-176,-176,-176,-176,-176,-166,-176,-176,-176,-176,-176,-176,-176,-157,-176,-157,-176,-176,-176,0,-176,-176,-176,-164,-176,-176,-176,-176,-176,-164,-164,-164,-176,-176,-176,-164,-164,-164,-164,-164,-164,0,-168,0,-176,0,-164,-164,-176,0,-164]} 1. d4 {[%emt 0:00:03]} Nf6 {[%emt 0:00:22]} 2. c4 {[%emt 0:00:07]} e6 {[%emt 0:00:42]} 3. Nc3 {[%emt 0:03:31]} Bb4 {[%emt 0:00:43]} 4. Qc2 {[%emt 0:02:06]} O-O {[%emt 0:00:47]} 5. e4 {[%emt 0:00:19]} d6 {[%emt 0:01:28]} 6. e5 {[%emt 0:01:33]} dxe5 {[%emt 0:02:26] 6...Nfd7 is more fashionable. E32: Nimzo-Indian: Classical (4 Qc2): 4...0-0.} 7. dxe5 {[%emt 0:00:03]} Ng4 {[%emt 0:00:50]} 8. Nf3 {[%emt 0:04:12] aiming for h3.} Nc6 {[%emt 0:01:41]} 9. Bf4 {[%emt 0:02:24] Strongly threatening Rd1.} Nd4 {[%emt 0:05:53]} 10. Qd2 {[%emt 0:05:18]} Nxf3+ {[%emt 0:01:39]} 11. gxf3 {[%emt 0:00:03]} Qxd2+ {[%emt 0:00:30]} 12. Kxd2 {[%emt 0:00:09]} Nh6 {[%emt 0:00:18]} (12... Nxf2 {is interesting.} 13. Rg1 Rd8+ 14. Kc2 Bc5) 13. Bxh6 {[%emt 0:35:52]} gxh6 {[%emt 0:00:18]} 14. a3 {[%emt 0:09:31]} Be7 {[%emt 0:07:18] [#]} 15. Rg1+ $146 {[%emt 0:02:09]} ({Predecessor:} 15. Ne4 f5 16. exf6 Bxf6 17. Nxf6+ Rxf6 18. Rg1+ Kf7 19. Ke3 Bd7 20. Bd3 Bc6 21. Be4 {½-½ (52) Drygalov,S (2490)-Maiorov,N (2463) Cheliabinsk 2021}) 15... Kh8 {[%emt 0:00:14]} 16. Ne4 {[%emt 0:03:32]} Bd7 {[%emt 0:02:47]} 17. Bd3 {[%emt 0:02:33]} (17. Nf6 {is more complex.} Rfd8 18. Bd3 Bc6 19. Rg3) 17... Rad8 {[%emt 0:03:26]} 18. Ke2 {[%emt 0:14:49]} Bc6 {[%emt 0:12:35]} 19. Rad1 {[%emt 0:02:13]} b6 {[%emt 0:48:23]} ({Black should play} 19... Bxe4 20. Bxe4 Bg5) 20. Bc2 {[%emt 0:09:55]} (20. Nf6 $142) 20... Bxe4 $11 {[%emt 0:02:43]} 21. Bxe4 {[%emt 0:00:58]} Bg5 {[%emt 0:00:41]} 22. Rxd8 {[%emt 0:09:38]} Rxd8 {[%emt 0:00:13]} 23. Rd1 {[%emt 0:00:02] Inhibits Rd2+.} Rxd1 {[%emt 0:00:19]} 24. Kxd1 $17 {[%emt 0:00:02][%mdl 4096] Endgame KB-KB} Bf4 {[%emt 0:00:07][%csl LRe5,LRh2]} 25. h3 {[%emt 0:00:03]} Bxe5 {[%emt 0:00:11]} 26. b3 {[%emt 0:01:04]} Kg7 {[%emt 0:00:09]} 27. Ke2 {[%emt 0:00:34]} f5 {[%emt 0:01:08]} 28. Bc6 {[%emt 0:00:36]} Kf6 {[%emt 0:01:16]} 29. a4 {[%emt 0:01:07]} Bd6 {[%emt 0:02:32]} 30. Bd7 {[%emt 0:01:11]} a5 {[%emt 0:00:16]} 31. Kd3 {[%emt 0:01:32]} Bc5 {[%emt 0:02:23]} 32. Ke2 {[%emt 0:01:14]} Ke5 {[%emt 0:05:57]} 33. f4+ $1 {[%emt 0:02:59]} Kd4 {[%emt 0:03:00]} 34. Bxe6 {[%emt 0:00:30] [#]} Kc3 $1 {[%emt 0:00:18]} 35. Bd7 {[%emt 0:00:24]} ({Better is} 35. Bxf5 Kxb3 36. Bd7) 35... Kxb3 {[%emt 0:00:16]} 36. Bb5 {[%emt 0:00:07]} Kc3 {[%emt 0:00:49]} 37. Ba6 {[%emt 0:01:04]} Kd4 {[%emt 0:00:22]} 38. f3 {[%emt 0:00:24]} Bd6 {[%emt 0:00:16]} 39. Bc8 $2 {[%emt 0:00:36][%mdl 8192]} (39. Kd2 $17 {is tougher.}) 39... Kxc4 $19 {[%emt 0:00:51] ...Kb3 is the strong threat.} 40. Bxf5 {[%emt 0:00:10]} (40. Bd7 $142 Bxf4 41. Bc6) 40... Bxf4 {[%emt 0:00:28]} 41. Bd7 {[%emt 0:03:26] [#]} Kc5 $2 {[%emt 0:03:59]} (41... c5 $1 $19 {and Black stays clearly on top.} 42. h4 Kb3) 42. Kd3 $17 {[%emt 0:01:02]} c6 {[%emt 0:00:12]} 43. Kc3 {[%emt 0:01:40]} h5 {[%emt 0:01:58][%cal Bh6h5,Bh5h4][%mdl 32]} 44. Kb3 {[%emt 0:03:16]} b5 {[%emt 0:00:47]} 45. axb5 {[%emt 0:03:17]} (45. Bf5 $17) 45... cxb5 $19 {[%emt 0:00:08]} 46. Be8 {[%emt 0:03:28]} h4 {[%emt 0:00:19]} 47. Bd7 {[%emt 0:01:32]} a4+ {[%emt 0:00:23]} 48. Ka2 {[%emt 0:00:25]} Kb4 {[%emt 0:00:26]} 49. Bf5 {[%emt 0:03:11]} h6 {[%emt 0:02:03]} 50. Bd7 {[%emt 0:03:18]} Ka5 {[%emt 0:00:34]} 51. Bf5 {[%emt 0:06:32]} b4 {[%emt 0:09:46]} 52. Be6 {[%emt 0:00:49]} Bd6 {[%emt 0:02:33]} 53. Kb2 {[%emt 0:02:47]} Be7 {[%emt 0:11:09]} 54. Bf7 {[%emt 0:00:24]} Bc5 {[%emt 0:04:51]} 55. Be6 {[%emt 0:00:23]} Bd4+ {[%emt 0:01:25]} 56. Ka2 {[%emt 0:00:22]} Kb6 {[%emt 0:00:41]} 57. Bd7 {[%emt 0:00:15]} Ka5 {[%emt 0:00:22]} 58. Be6 {[%emt 0:00:10]} Be3 {[%emt 0:00:36]} 59. Bf7 {[%emt 0:01:44]} Ba7 {[%emt 0:01:32]} 60. Be6 {[%emt 0:00:13]} Bb8 {[%emt 0:00:34]} 61. Bf7 {[%emt 0:00:14]} Bd6 {[%emt 0:00:03]} 62. Kb2 {[%emt 0:00:21]} Bf8 {[%emt 0:00:26]} 63. Be6 {[%emt 0:00:14]} Bg7+ {[%emt 0:01:05]} 64. Ka2 {[%emt 0:00:07]} Bf6 {[%emt 0:00:03]} 65. Bf7 {[%emt 0:00:18]} Bd8 {[%emt 0:00:17]} 66. Be6 {[%emt 0:00:26]} Bg5 {[%emt 0:01:22]} 67. Bf7 {[%emt 0:01:17]} Bc1 {[%emt 0:00:08]} 68. Kb1 {[%emt 0:00:36]} Be3 {[%emt 0:00:27] ( -> ...b3)} 69. Ka2 $1 {[%emt 0:00:15]} Bd4 {[%emt 0:00:10]} 70. Be6 $1 {[%emt 0:00:19]} Bc5 {[%emt 0:03:09]} 71. Kb2 $1 {[%emt 0:00:13]} Bb6 {[%emt 0:00:07]} 72. Ka2 {[%emt 0:00:47]} Bc5 {[%emt 0:01:00]} 73. Kb2 $1 {[%emt 0:04:02] Weighted Error Value: White=0.27 (precise) /Black=0.23 (precise)} 1/2-1/2

[Event "101st Irish Championship 2022"]
[Site "Dublin"]
[Date "2022.07.05"]
[Round "2.2"]
[White "Baburin, Alexander"]
[Black "Venkatesan, Kavin"]
[Result "1-0"]
[ECO "E04"]
[WhiteElo "2400"]
[BlackElo "2076"]
[Annotator "TA"]
[PlyCount "99"]
[EventDate "2022.07.05"]
[EventType "swiss"]
[EventCountry "IRL"]
[SourceTitle "playchess.com"]
[Source "ChessBase"]
[SourceQuality "1"]
[TimeControl "40/6300+30:1800+30"]

{[%evp 14,99,41,53,83,9,5,18,13,0,9,10,10,-19,-10,-8,-10,-15,-6,-10,22,13,27,31,43,46,37,19,16,14,26,23,19,16,19,0,13,0,26,20,17,15,8,4,61,49,126,127,131,136,157,150,174,150,160,144,189,193,193,193,200,195,252,241,297,289,344,280,368,366,355,340,508,528,559,581,708,699,825,729,1101,1086,1339,1202,29980,29981,29980,29978]} 1. d4 {[%emt 0:00:02]} Nf6 {[%emt 0:00:13]} 2. c4 {[%emt 0:00:06]} e6 {[%emt 0:00:07]} 3. g3 {[%emt 0:00:05]} d5 {[%emt 0:00:25][%cal Bd7d5,Bd5c4][%mdl 32]} 4. Nf3 {[%emt 0:00:10]} dxc4 {[%emt 0:03:03]} 5. Bg2 {[%emt 0:00:49]} a6 {[%emt 0:00:11]} 6. O-O {[%emt 0:03:43]} Nc6 {[%emt 0:01:21]} 7. e3 {[%emt 0:07:38]} Rb8 {[%emt 0:00:56]} 8. Nfd2 {[%emt 0:08:11]} e5 {[%emt 0:06:13] E04: Open Catalan: 5 Nf3.} 9. Nxc4 {[%emt 0:01:07]} (9. Bxc6+ $16 bxc6 10. dxe5) 9... exd4 $11 {[%emt 0:02:57]} 10. Bxc6+ {[%emt 0:00:18][%mdl 64] Remove Defender} bxc6 {[%emt 0:00:09] The position is equal.} 11. Qxd4 {[%emt 0:00:09]} Qxd4 {[%emt 0:15:06]} 12. exd4 {[%emt 0:00:39]} Be6 {[%emt 0:02:53] [#]} 13. Nba3 $146 {[%emt 0:05:38]} ({Predecessor:} 13. Ne5 c5 14. b3 Bd6 15. Ba3 Rb5 16. Nc4 O-O 17. dxc5 Bxc5 18. Nc3 Bxc4 19. Nxb5 Bxf1 20. Kxf1 Bxa3 21. Nxa3 {½-½ (110) Yordanov,L (2325)-Studer,N (2584) Tornelo INT 2021}) 13... c5 {[%emt 0:13:15]} 14. dxc5 {[%emt 0:04:03]} Bxc5 {[%emt 0:00:32]} 15. b3 {[%emt 0:00:14]} O-O {[%emt 0:05:04]} 16. Be3 {[%emt 0:01:26]} Ne4 {[%emt 0:11:14]} 17. Bxc5 {[%emt 0:05:36]} Nxc5 {[%emt 0:00:13]} 18. Ne5 {[%emt 0:12:26]} f6 {[%emt 0:05:52]} 19. Nc6 {[%emt 0:04:40]} Rb6 {[%emt 0:00:56]} 20. Nd4 {[%emt 0:00:24]} Rd8 {[%emt 0:08:09]} 21. Nxe6 {[%emt 0:05:28]} Rxe6 {[%emt 0:04:17]} 22. Rac1 {[%emt 0:06:52]} Re5 {[%emt 0:02:00]} 23. Rc2 {[%emt 0:05:17]} Ne6 {[%emt 0:05:00]} 24. Rc6 {[%emt 0:06:38]} Rd6 {[%emt 0:02:27]} 25. Rfc1 {[%emt 0:10:48]} Nd4 {[%emt 0:04:01]} 26. Rxd6 {[%emt 0:01:27]} cxd6 {[%emt 0:02:05][%mdl 4096] Endgame KRN-KRN} 27. Rc8+ {[%emt 0:02:35]} Kf7 {[%emt 0:00:14]} 28. Nc4 {[%emt 0:00:27]} Re1+ {[%emt 0:00:26]} 29. Kg2 {[%emt 0:00:07]} Re6 {[%emt 0:03:51] White leaves nothing to chance now.} (29... Ra1 $14) 30. Rc7+ $16 {[%emt 0:08:04]} Kf8 {[%emt 0:02:24]} 31. Ne3 {[%emt 0:01:41]} Re7 {[%emt 0:01:54]} 32. Rc4 {[%emt 0:01:09]} Nb5 {[%emt 0:02:45]} 33. Rc6 {[%emt 0:02:46]} Ra7 {[%emt 0:01:23] [#]} 34. Nf5 $1 {[%emt 0:01:43]} d5 {[%emt 0:00:59]} 35. a4 {[%emt 0:02:20]} Nc7 {[%emt 0:01:06]} 36. b4 {[%emt 0:00:44]} Ne8 {[%emt 0:03:40]} 37. Rb6 {[%emt 0:03:42] Against Rb7} g6 {[%emt 0:03:52]} (37... Rd7 {was called for.}) 38. Nd4 $18 {[%emt 0:00:24]} Kf7 {[%emt 0:01:01]} 39. Kf3 {[%emt 0:01:53]} Rc7 {[%emt 0:01:28]} 40. Rxa6 {[%emt 0:01:39] Strongly threatening b5.} Rc3+ {[%emt 0:00:33]} 41. Ke2 {[%emt 0:30:48] Black must now prevent b5.} Rc4 {[%emt 0:03:04]} 42. Nc6 {[%emt 0:00:00]} ({Less strong is} 42. Ra7+ Kg8 $18) 42... Rc2+ {[%emt 0:02:59]} (42... Nd6 {keeps fighting.} 43. Na5 Re4+ 44. Kd3 Nf5) 43. Kd3 {[%emt 0:00:00]} Rxf2 {[%emt 0:00:17]} 44. b5 {[%emt 0:00:00][%cal Bb4b5,Bb5b6,Bb6b7][%mdl 32]} Nd6 {[%emt 0:03:10]} 45. Ra7+ {[%emt 0:00:00]} Kf8 {[%emt 0:01:57]} 46. b6 {[%emt 0:00:00]} Rb2 {[%emt 0:05:21]} 47. a5 {[%emt 0:00:00]} Rb5 {[%emt 0:04:48]} 48. Rxh7 {[%emt 0:00:00]} Nf7 {[%emt 0:01:47] [#]} 49. Rxf7+ $1 {[%emt 0:00:00][%mdl 512]} Kxf7 {[%emt 0:00:10]} 50. b7 {[%emt 0:00:00] Weighted Error Value: White=0.08 (flawless) /Black=0.48} 1-0